[Event "Titled Tuesday Blitz February 22 Late 2022"]
[White "Holt, Conrad"]
[Black "Vlassov, Nikolai"]
[WhiteFideId "2034387"]
[BlackFideId "4103360"]
[WhiteElo "2586"]
[BlackElo "2407"]
[Result "1-0"]
[Round "07"]
[TimeControl "180+1"]
[Date "2022.02.22"]
[WhiteClock "0:00:52"]
[BlackClock "0:00:06"]

1. d4 {[%clk 0:03:00]}  Nf6 {[%clk 0:02:59]} 2. c4 {[%clk 0:03:01]}  Nc6 {[%clk 0:03:00]} 3. Nf3 {[%clk 0:03:00]}  e6 {[%clk 0:03:00]} 4. e3 {[%clk 0:02:59]}  Bb4+ {[%clk 0:03:00]} 5. Nbd2 {[%clk 0:02:59]}  a5 {[%clk 0:03:01]} 6. Bd3 {[%clk 0:02:57]}  d6 {[%clk 0:03:01]} 7. O-O {[%clk 0:02:57]}  e5 {[%clk 0:03:01]} 8. Qc2 {[%clk 0:02:54]}  Bg4 {[%clk 0:02:58]} 9. h3 {[%clk 0:02:42]}  Bxd2 {[%clk 0:02:41]} 10. Nxd2 {[%clk 0:02:22]}  Nb4 {[%clk 0:02:40]} 11. Qc3 {[%clk 0:02:21]}  Nxd3 {[%clk 0:02:39]} 12. Qxd3 {[%clk 0:02:17]}  Bh5 {[%clk 0:02:39]} 13. f4 {[%clk 0:01:55]}  exf4 {[%clk 0:01:47]} 14. exf4 {[%clk 0:01:53]}  d5 {[%clk 0:01:39]} 15. Re1+ {[%clk 0:01:44]}  Kf8 {[%clk 0:01:39]} 16. g4 {[%clk 0:01:42]}  Bxg4 {[%clk 0:01:21]} 17. hxg4 {[%clk 0:01:41]}  Nxg4 {[%clk 0:01:22]} 18. Nf3 {[%clk 0:01:41]}  h5 {[%clk 0:01:13]} 19. f5 {[%clk 0:01:38]}  dxc4 {[%clk 0:00:50]} 20. Qxc4 {[%clk 0:01:37]}  Ra6 {[%clk 0:00:48]} 21. Bg5 {[%clk 0:01:28]}  Qd7 {[%clk 0:00:43]} 22. Qc5+ {[%clk 0:01:20]}  Kg8 {[%clk 0:00:38]} 23. Re7 {[%clk 0:01:18]}  Qd6 {[%clk 0:00:26]} 24. Qxd6 {[%clk 0:01:16]}  cxd6 {[%clk 0:00:23]} 25. Bf4 {[%clk 0:01:12]}  f6 {[%clk 0:00:18]} 26. Rc1 {[%clk 0:01:06]}  Kh7 {[%clk 0:00:17]} 27. Rcc7 {[%clk 0:01:05]}  Rg8 {[%clk 0:00:17]} 28. d5 {[%clk 0:01:01]}  b5 {[%clk 0:00:14]} 29. Nd4 {[%clk 0:01:00]}  Nh6 {[%clk 0:00:09]} 30. Kg2 {[%clk 0:00:57]}  b4 {[%clk 0:00:09]} 31. Kh3 {[%clk 0:00:56]}  a4 {[%clk 0:00:09]} 32. Kh4 {[%clk 0:00:56]}  b3 {[%clk 0:00:08]} 33. axb3 {[%clk 0:00:55]}  axb3 {[%clk 0:00:07]} 34. Kxh5 {[%clk 0:00:54]}  Ra5 {[%clk 0:00:07]} 35. Bxh6 {[%clk 0:00:54]}  Rxd5 {[%clk 0:00:06]} 36. Rxg7+ {[%clk 0:00:53]}  Rxg7 {[%clk 0:00:06]} 37. Bxg7 {[%clk 0:00:52]}  Rxd4 {[%clk 0:00:06]} 38. Bxf6+ {[%clk 0:00:52]} 1-0


[Site "https://www.chess.com"]

[Event "Titled Tuesday Blitz February 22 Late 2022"]
[White "Horak, Martin"]
[Black "Gerbelli Neto, Eduardo"]
[WhiteFideId "367095"]
[BlackFideId "2103281"]
[WhiteElo "1997"]
[BlackElo "2178"]
[Result "1-0"]
[Round "07"]
[TimeControl "180+1"]
[Date "2022.02.23"]
[WhiteClock "0:00:01"]
[BlackClock "0:00:03"]

1. d4 {[%clk 0:03:00]}  d5 {[%clk 0:02:59]} 2. c4 {[%clk 0:02:59]}  c6 {[%clk 0:02:59]} 3. Nf3 {[%clk 0:02:59]}  Nf6 {[%clk 0:02:59]} 4. g3 {[%clk 0:02:59]}  dxc4 {[%clk 0:02:58]} 5. Bg2 {[%clk 0:02:58]}  e6 {[%clk 0:02:59]} 6. O-O {[%clk 0:02:58]}  b5 {[%clk 0:02:59]} 7. a4 {[%clk 0:02:54]}  Bb7 {[%clk 0:02:59]} 8. b3 {[%clk 0:02:29]}  b4 {[%clk 0:02:51]} 9. bxc4 {[%clk 0:02:27]}  a5 {[%clk 0:02:51]} 10. Nbd2 {[%clk 0:02:26]}  Nbd7 {[%clk 0:02:51]} 11. Nb3 {[%clk 0:02:26]}  Be7 {[%clk 0:02:51]} 12. Bb2 {[%clk 0:01:59]}  c5 {[%clk 0:02:45]} 13. e3 {[%clk 0:01:51]}  O-O {[%clk 0:02:35]} 14. Qc2 {[%clk 0:01:45]}  Be4 {[%clk 0:02:31]} 15. Qe2 {[%clk 0:01:44]}  Qb6 {[%clk 0:02:24]} 16. Rfd1 {[%clk 0:01:33]}  Rfc8 {[%clk 0:02:14]} 17. Rac1 {[%clk 0:01:27]}  Qc6 {[%clk 0:01:53]} 18. Nbd2 {[%clk 0:01:23]}  Qxa4 {[%clk 0:01:43]} 19. Nxe4 {[%clk 0:01:23]}  Nxe4 {[%clk 0:01:44]} 20. Ne5 {[%clk 0:01:18]}  Ndf6 {[%clk 0:01:29]} 21. Ra1 {[%clk 0:00:55]}  Qe8 {[%clk 0:01:14]} 22. Qd3 {[%clk 0:00:46]}  Nd6 {[%clk 0:00:51]} 23. Bxa8 {[%clk 0:00:45]}  Rxa8 {[%clk 0:00:51]} 24. dxc5 {[%clk 0:00:46]}  Nb7 {[%clk 0:00:44]} 25. c6 {[%clk 0:00:44]}  Nc5 {[%clk 0:00:44]} 26. Qc2 {[%clk 0:00:30]}  a4 {[%clk 0:00:44]} 27. Bd4 {[%clk 0:00:26]}  b3 {[%clk 0:00:40]} 28. Qe2 {[%clk 0:00:24]}  a3 {[%clk 0:00:35]} 29. Bxc5 {[%clk 0:00:22]}  Bxc5 {[%clk 0:00:34]} 30. Nd7 {[%clk 0:00:23]}  Qe7 {[%clk 0:00:25]} 31. Qd3 {[%clk 0:00:16]}  b2 {[%clk 0:00:24]} 32. Ra2 {[%clk 0:00:05]}  Bb4 {[%clk 0:00:24]} 33. c7 {[%clk 0:00:04]}  Ba5 {[%clk 0:00:16]} 34. Nxf6+ {[%clk 0:00:02]}  gxf6 {[%clk 0:00:16]} 35. Rxa3 {[%clk 0:00:02]}  Qxc7 {[%clk 0:00:14]} 36. Rb3 {[%clk 0:00:03]}  Rb8 {[%clk 0:00:14]} 37. Rxb8+ {[%clk 0:00:02]}  Qxb8 {[%clk 0:00:15]} 38. Rb1 {[%clk 0:00:01]}  Bc7 {[%clk 0:00:11]} 39. Qc2 {[%clk 0:00:02]}  Be5 {[%clk 0:00:11]} 40. f4 {[%clk 0:00:02]}  Qb6 {[%clk 0:00:07]} 41. fxe5 {[%clk 0:00:01]}  Qxe3+ {[%clk 0:00:08]} 42. Kg2 {[%clk 0:00:02]}  Qxe5 {[%clk 0:00:06]} 43. Rxb2 {[%clk 0:00:03]}  f5 {[%clk 0:00:06]} 44. Rb3 {[%clk 0:00:03]}  Qd4 {[%clk 0:00:05]} 45. Rf3 {[%clk 0:00:03]}  Qc5 {[%clk 0:00:05]} 46. Rf4 {[%clk 0:00:03]}  Kg7 {[%clk 0:00:05]} 47. Qf2 {[%clk 0:00:04]}  Qc6+ {[%clk 0:00:04]} 48. Kh3 {[%clk 0:00:03]}  h5 {[%clk 0:00:03]} 49. c5 {[%clk 0:00:03]}  e5 {[%clk 0:00:02]} 50. Rxf5 {[%clk 0:00:03]}  Qe6 {[%clk 0:00:03]} 51. Qf3 {[%clk 0:00:02]}  Kg6 {[%clk 0:00:03]} 52. Qxh5+ {[%clk 0:00:01]} 1-0


[Site "https://www.chess.com"]

[Event "Titled Tuesday Blitz February 22 Late 2022"]
[White "Ibarra Jerez, Jose Carlos"]
[Black "Curtis, John"]
[WhiteFideId "2226332"]
[BlackFideId "3200256"]
[WhiteElo "2823"]
[BlackElo "2246"]
[Result "1-0"]
[Round "07"]
[TimeControl "180+1"]
[Date "2022.02.23"]
[WhiteClock "0:01:21"]
[BlackClock "0:00:42"]

1. e4 {[%clk 0:03:00]}  c5 {[%clk 0:02:58]} 2. Nc3 {[%clk 0:02:59]}  Nc6 {[%clk 0:02:57]} 3. Nf3 {[%clk 0:02:59]}  e6 {[%clk 0:02:57]} 4. d4 {[%clk 0:02:59]}  cxd4 {[%clk 0:02:56]} 5. Nxd4 {[%clk 0:03:00]}  Nf6 {[%clk 0:02:56]} 6. Ndb5 {[%clk 0:02:58]}  Bb4 {[%clk 0:02:52]} 7. a3 {[%clk 0:02:54]}  Bxc3+ {[%clk 0:02:52]} 8. Nxc3 {[%clk 0:02:54]}  d5 {[%clk 0:02:52]} 9. Bd3 {[%clk 0:02:54]}  dxe4 {[%clk 0:02:49]} 10. Nxe4 {[%clk 0:02:55]}  Nxe4 {[%clk 0:02:48]} 11. Bxe4 {[%clk 0:02:56]}  Qxd1+ {[%clk 0:02:47]} 12. Kxd1 {[%clk 0:02:57]}  Bd7 {[%clk 0:02:46]} 13. Be3 {[%clk 0:02:54]}  O-O {[%clk 0:02:42]} 14. Kc1 {[%clk 0:02:48]}  Nd8 {[%clk 0:02:40]} 15. f3 {[%clk 0:02:42]}  Bc6 {[%clk 0:02:40]} 16. Bd3 {[%clk 0:02:42]}  e5 {[%clk 0:02:31]} 17. Re1 {[%clk 0:02:35]}  Re8 {[%clk 0:02:27]} 18. b3 {[%clk 0:02:29]}  a6 {[%clk 0:02:17]} 19. Bb6 {[%clk 0:02:21]}  f6 {[%clk 0:01:58]} 20. Bc4+ {[%clk 0:02:20]}  Ne6 {[%clk 0:01:57]} 21. f4 {[%clk 0:02:13]}  Kh8 {[%clk 0:01:48]} 22. fxe5 {[%clk 0:02:12]}  f5 {[%clk 0:01:46]} 23. g3 {[%clk 0:02:08]}  Be4 {[%clk 0:01:36]} 24. Kb2 {[%clk 0:02:03]}  Rac8 {[%clk 0:01:36]} 25. Rad1 {[%clk 0:01:59]}  Rc6 {[%clk 0:01:31]} 26. Rd6 {[%clk 0:01:58]}  g6 {[%clk 0:01:25]} 27. Red1 {[%clk 0:01:50]}  h5 {[%clk 0:01:06]} 28. Rxc6 {[%clk 0:01:45]}  Bxc6 {[%clk 0:01:06]} 29. Rd6 {[%clk 0:01:45]}  Nf8 {[%clk 0:01:03]} 30. Bf7 {[%clk 0:01:40]}  Ra8 {[%clk 0:00:59]} 31. e6 {[%clk 0:01:37]}  Kh7 {[%clk 0:00:55]} 32. e7 {[%clk 0:01:34]}  Kg7 {[%clk 0:00:54]} 33. exf8=Q+ {[%clk 0:01:29]}  Rxf8 {[%clk 0:00:53]} 34. Bxg6 {[%clk 0:01:28]}  f4 {[%clk 0:00:51]} 35. Bd4+ {[%clk 0:01:26]}  Kh6 {[%clk 0:00:48]} 36. Be4+ {[%clk 0:01:22]}  Rf6 {[%clk 0:00:42]} 37. Rxf6+ {[%clk 0:01:21]} 1-0


[Site "https://www.chess.com"]

[Event "Titled Tuesday Blitz February 22 Late 2022"]
[White "Jones, Gawain C B"]
[Black "Xiong, Jeffery"]
[WhiteFideId "409561"]
[BlackFideId "2047640"]
[WhiteElo "2657"]
[BlackElo "2727"]
[Result "1-0"]
[Round "07"]
[TimeControl "180+1"]
[Date "2022.02.22"]
[WhiteClock "0:00:06"]
[BlackClock "0:00:03"]

1. Nf3 {[%clk 0:03:00]}  d5 {[%clk 0:02:57]} 2. g3 {[%clk 0:03:00]}  Nf6 {[%clk 0:02:53]} 3. Bg2 {[%clk 0:03:01]}  c5 {[%clk 0:02:53]} 4. c4 {[%clk 0:02:56]}  d4 {[%clk 0:02:50]} 5. b4 {[%clk 0:02:56]}  cxb4 {[%clk 0:02:50]} 6. a3 {[%clk 0:02:56]}  b3 {[%clk 0:02:50]} 7. O-O {[%clk 0:02:54]}  Nc6 {[%clk 0:02:50]} 8. Qxb3 {[%clk 0:02:50]}  e5 {[%clk 0:02:47]} 9. d3 {[%clk 0:02:50]}  Be7 {[%clk 0:02:46]} 10. Bg5 {[%clk 0:02:47]}  Nd7 {[%clk 0:02:42]} 11. Bxe7 {[%clk 0:02:48]}  Qxe7 {[%clk 0:02:43]} 12. Nbd2 {[%clk 0:02:47]}  Nc5 {[%clk 0:02:43]} 13. Qc2 {[%clk 0:02:41]}  O-O {[%clk 0:02:43]} 14. Nb3 {[%clk 0:02:40]}  Ne6 {[%clk 0:02:36]} 15. Rfe1 {[%clk 0:02:39]}  Rd8 {[%clk 0:02:20]} 16. e3 {[%clk 0:02:33]}  dxe3 {[%clk 0:02:21]} 17. Rxe3 {[%clk 0:02:33]}  Qc7 {[%clk 0:02:22]} 18. Rae1 {[%clk 0:02:30]}  f6 {[%clk 0:02:22]} 19. Qb2 {[%clk 0:01:58]}  a5 {[%clk 0:02:18]} 20. d4 {[%clk 0:01:52]}  a4 {[%clk 0:02:00]} 21. dxe5 {[%clk 0:01:50]}  axb3 {[%clk 0:02:00]} 22. exf6 {[%clk 0:01:49]}  gxf6 {[%clk 0:01:37]} 23. Rxe6 {[%clk 0:01:40]}  Bxe6 {[%clk 0:01:37]} 24. Rxe6 {[%clk 0:01:40]}  Rd1+ {[%clk 0:01:37]} 25. Bf1 {[%clk 0:01:40]}  Qd7 {[%clk 0:01:27]} 26. Re3 {[%clk 0:00:55]}  Qh3 {[%clk 0:01:09]} 27. Ne1 {[%clk 0:00:52]}  Qf5 {[%clk 0:01:06]} 28. Qxb3 {[%clk 0:00:47]}  Rb1 {[%clk 0:01:05]} 29. Qc3 {[%clk 0:00:38]}  Ne5 {[%clk 0:01:02]} 30. Kg2 {[%clk 0:00:36]}  Rd8 {[%clk 0:00:46]} 31. Nf3 {[%clk 0:00:24]}  Ng4 {[%clk 0:00:22]} 32. Rd3 {[%clk 0:00:21]}  Re8 {[%clk 0:00:10]} 33. Rd5 {[%clk 0:00:19]}  Qe6 {[%clk 0:00:04]} 34. Bd3 {[%clk 0:00:17]}  Qb6 {[%clk 0:00:04]} 35. Bxb1 {[%clk 0:00:10]}  Qxf2+ {[%clk 0:00:04]} 36. Kh3 {[%clk 0:00:10]}  Ne3 {[%clk 0:00:05]} 37. Qxf6 {[%clk 0:00:06]}  Qf1+ {[%clk 0:00:01]} 38. Kh4 {[%clk 0:00:07]}  Nxd5 {[%clk 0:00:02]} 39. Bxh7+ {[%clk 0:00:06]}  Kxh7 {[%clk 0:00:02]} 40. Ng5+ {[%clk 0:00:06]}  Kg8 {[%clk 0:00:03]} 41. Qxf1 {[%clk 0:00:06]} 1-0


[Site "https://www.chess.com"]

[Event "Titled Tuesday Blitz February 22 Late 2022"]
[White "Kollars, Dmitrij"]
[Black "Naroditsky, Daniel"]
[WhiteFideId "12909572"]
[BlackFideId "2026961"]
[WhiteElo "2584"]
[BlackElo "2608"]
[Result "0-1"]
[Round "07"]
[TimeControl "180+1"]
[Date "2022.02.22"]
[WhiteClock "0:00:01"]
[BlackClock "0:00:15"]

1. e4 {[%clk 0:03:00]}  e5 {[%clk 0:02:59]} 2. Nf3 {[%clk 0:03:00]}  Nc6 {[%clk 0:03:00]} 3. Bb5 {[%clk 0:02:58]}  a6 {[%clk 0:02:46]} 4. Ba4 {[%clk 0:02:57]}  d6 {[%clk 0:02:47]} 5. O-O {[%clk 0:02:57]}  Bd7 {[%clk 0:02:47]} 6. c3 {[%clk 0:02:57]}  Nf6 {[%clk 0:02:47]} 7. Re1 {[%clk 0:02:57]}  g6 {[%clk 0:02:48]} 8. d4 {[%clk 0:02:57]}  Bg7 {[%clk 0:02:48]} 9. Bc2 {[%clk 0:02:58]}  O-O {[%clk 0:02:47]} 10. h3 {[%clk 0:02:58]}  Re8 {[%clk 0:02:41]} 11. Nbd2 {[%clk 0:02:55]}  Nh5 {[%clk 0:02:39]} 12. Nf1 {[%clk 0:02:54]}  b5 {[%clk 0:02:38]} 13. Be3 {[%clk 0:02:53]}  h6 {[%clk 0:02:30]} 14. Rc1 {[%clk 0:02:47]}  Rb8 {[%clk 0:02:20]} 15. a3 {[%clk 0:02:45]}  Na5 {[%clk 0:02:19]} 16. b3 {[%clk 0:02:16]}  Qe7 {[%clk 0:02:17]} 17. Qd2 {[%clk 0:02:08]}  Kh7 {[%clk 0:02:17]} 18. c4 {[%clk 0:02:02]}  Nc6 {[%clk 0:02:17]} 19. d5 {[%clk 0:02:00]}  Nd8 {[%clk 0:02:15]} 20. c5 {[%clk 0:01:56]}  dxc5 {[%clk 0:02:12]} 21. Bd1 {[%clk 0:01:12]}  Nb7 {[%clk 0:02:10]} 22. Qc2 {[%clk 0:01:07]}  Bf8 {[%clk 0:02:04]} 23. Ng3 {[%clk 0:00:35]}  Nf6 {[%clk 0:01:54]} 24. Be2 {[%clk 0:00:30]}  c6 {[%clk 0:01:54]} 25. Red1 {[%clk 0:00:20]}  cxd5 {[%clk 0:01:43]} 26. exd5 {[%clk 0:00:21]}  Rbc8 {[%clk 0:01:43]} 27. d6 {[%clk 0:00:19]}  Qe6 {[%clk 0:01:37]} 28. Bg5 {[%clk 0:00:19]}  Ng8 {[%clk 0:01:04]} 29. Be3 {[%clk 0:00:14]}  f5 {[%clk 0:01:02]} 30. Nf1 {[%clk 0:00:10]}  e4 {[%clk 0:00:52]} 31. N3d2 {[%clk 0:00:09]}  Bxd6 {[%clk 0:00:51]} 32. a4 {[%clk 0:00:07]}  f4 {[%clk 0:00:51]} 33. axb5 {[%clk 0:00:06]}  axb5 {[%clk 0:00:51]} 34. Bg4 {[%clk 0:00:04]}  Qf7 {[%clk 0:00:44]} 35. Bxd7 {[%clk 0:00:05]}  Qxd7 {[%clk 0:00:44]} 36. Nxe4 {[%clk 0:00:04]}  fxe3 {[%clk 0:00:45]} 37. Nxe3 {[%clk 0:00:05]}  Qe6 {[%clk 0:00:41]} 38. Nxd6 {[%clk 0:00:05]}  Nxd6 {[%clk 0:00:42]} 39. Nd5 {[%clk 0:00:06]}  Nf6 {[%clk 0:00:36]} 40. Nf4 {[%clk 0:00:05]}  Qf5 {[%clk 0:00:36]} 41. Rxd6 {[%clk 0:00:03]}  Qxf4 {[%clk 0:00:35]} 42. Rcd1 {[%clk 0:00:04]}  Re1+ {[%clk 0:00:30]} 43. Rxe1 {[%clk 0:00:03]}  Qxd6 {[%clk 0:00:31]} 44. Qe2 {[%clk 0:00:03]}  c4 {[%clk 0:00:29]} 45. bxc4 {[%clk 0:00:01]}  bxc4 {[%clk 0:00:30]} 46. Qf3 {[%clk 0:00:01]}  c3 {[%clk 0:00:24]} 47. Rc1 {[%clk 0:00:02]}  c2 {[%clk 0:00:24]} 48. Qe2 {[%clk 0:00:01]}  Qc7 {[%clk 0:00:15]} 49. Qe6 {[%clk 0:00:01]}  Kg7 {[%clk 0:00:15]} 0-1


[Site "https://www.chess.com"]

[Event "Titled Tuesday Blitz February 22 Late 2022"]
[White "Leitao, Rafael"]
[Black "Janaszak, Dawid"]
[WhiteFideId "2101246"]
[BlackFideId "1119206"]
[WhiteElo "2693"]
[BlackElo "2544"]
[Result "0-1"]
[Round "07"]
[TimeControl "180+1"]
[Date "2022.02.23"]
[WhiteClock "0:00:20"]
[BlackClock "0:00:05"]

1. c4 {[%clk 0:03:00]}  Nf6 {[%clk 0:02:57]} 2. Nc3 {[%clk 0:03:00]}  g6 {[%clk 0:02:57]} 3. e4 {[%clk 0:02:52]}  d6 {[%clk 0:02:57]} 4. d4 {[%clk 0:02:51]}  Bg7 {[%clk 0:02:57]} 5. Be2 {[%clk 0:02:50]}  O-O {[%clk 0:02:55]} 6. Be3 {[%clk 0:02:51]}  Nbd7 {[%clk 0:02:54]} 7. h4 {[%clk 0:02:47]}  e5 {[%clk 0:02:48]} 8. d5 {[%clk 0:02:46]}  h5 {[%clk 0:02:43]} 9. f3 {[%clk 0:02:44]}  a6 {[%clk 0:02:34]} 10. Nh3 {[%clk 0:02:41]}  Qe7 {[%clk 0:02:29]} 11. Ng5 {[%clk 0:02:34]}  c5 {[%clk 0:02:20]} 12. Qd2 {[%clk 0:02:19]}  Rd8 {[%clk 0:02:08]} 13. Rb1 {[%clk 0:02:11]}  Nf8 {[%clk 0:02:01]} 14. b4 {[%clk 0:02:07]}  b6 {[%clk 0:01:55]} 15. Na4 {[%clk 0:01:52]}  N6d7 {[%clk 0:01:45]} 16. bxc5 {[%clk 0:01:50]}  bxc5 {[%clk 0:01:45]} 17. O-O {[%clk 0:01:45]}  f6 {[%clk 0:01:27]} 18. Nh3 {[%clk 0:01:40]}  f5 {[%clk 0:01:27]} 19. Bg5 {[%clk 0:01:36]}  Bf6 {[%clk 0:01:27]} 20. exf5 {[%clk 0:01:33]}  gxf5 {[%clk 0:01:26]} 21. f4 {[%clk 0:01:33]}  exf4 {[%clk 0:01:16]} 22. Rxf4 {[%clk 0:01:15]}  Ne5 {[%clk 0:01:01]} 23. Bxh5 {[%clk 0:01:12]}  Nfg6 {[%clk 0:00:56]} 24. Bxg6 {[%clk 0:00:59]}  Nxg6 {[%clk 0:00:57]} 25. Re1 {[%clk 0:00:56]}  Qg7 {[%clk 0:00:37]} 26. Rf3 {[%clk 0:00:56]}  Ne5 {[%clk 0:00:35]} 27. Rg3 {[%clk 0:00:54]}  Ng4 {[%clk 0:00:35]} 28. Bxf6 {[%clk 0:00:50]}  Qxf6 {[%clk 0:00:36]} 29. Nf2 {[%clk 0:00:48]}  Qxh4 {[%clk 0:00:33]} 30. Qf4 {[%clk 0:00:46]}  Rb8 {[%clk 0:00:20]} 31. Nxg4 {[%clk 0:00:40]}  fxg4 {[%clk 0:00:21]} 32. Rf1 {[%clk 0:00:40]}  Rb7 {[%clk 0:00:10]} 33. Nc3 {[%clk 0:00:40]}  Rh7 {[%clk 0:00:09]} 34. Ne4 {[%clk 0:00:40]}  Qh2+ {[%clk 0:00:08]} 35. Kf2 {[%clk 0:00:39]}  Rf7 {[%clk 0:00:09]} 36. Nf6+ {[%clk 0:00:31]}  Rxf6 {[%clk 0:00:09]} 37. Qxf6 {[%clk 0:00:32]}  Rf8 {[%clk 0:00:08]} 38. Qxf8+ {[%clk 0:00:29]}  Kxf8 {[%clk 0:00:09]} 39. Rb1 {[%clk 0:00:27]}  Bf5 {[%clk 0:00:08]} 40. Rb8+ {[%clk 0:00:25]}  Kf7 {[%clk 0:00:08]} 41. Rb7+ {[%clk 0:00:25]}  Kf6 {[%clk 0:00:08]} 42. Rb6 {[%clk 0:00:25]}  Ke5 {[%clk 0:00:06]} 43. Rxa6 {[%clk 0:00:23]}  Qh6 {[%clk 0:00:06]} 44. Raa3 {[%clk 0:00:21]}  Qf4+ {[%clk 0:00:05]} 45. Kg1 {[%clk 0:00:21]}  Be4 {[%clk 0:00:05]} 46. Rae3 {[%clk 0:00:20]}  Kd4 {[%clk 0:00:05]} 47. Rc3 {[%clk 0:00:18]}  Qd2 {[%clk 0:00:04]} 48. a4 {[%clk 0:00:18]}  Qxc3 {[%clk 0:00:04]} 49. Rxc3 {[%clk 0:00:18]}  Kxc3 {[%clk 0:00:04]} 50. a5 {[%clk 0:00:19]}  Kxc4 {[%clk 0:00:05]} 51. a6 {[%clk 0:00:19]}  Bxd5 {[%clk 0:00:05]} 52. Kf2 {[%clk 0:00:20]}  Kb5 {[%clk 0:00:05]} 0-1


[Site "https://www.chess.com"]

[Event "Titled Tuesday Blitz February 22 Late 2022"]
[White "Levine, David"]
[Black "Briscoe, Chris"]
[WhiteFideId "2011611"]
[BlackFideId "408360"]
[WhiteElo "2168"]
[BlackElo "2111"]
[Result "0-1"]
[Round "07"]
[TimeControl "180+1"]
[Date "2022.02.23"]
[WhiteClock "0:00:01"]
[BlackClock "0:00:14"]

1. d4 {[%clk 0:03:00]}  Nf6 {[%clk 0:02:59]} 2. c4 {[%clk 0:03:00]}  e6 {[%clk 0:02:59]} 3. g3 {[%clk 0:03:00]}  d5 {[%clk 0:02:58]} 4. Bg2 {[%clk 0:03:00]}  Be7 {[%clk 0:02:58]} 5. Nf3 {[%clk 0:03:00]}  O-O {[%clk 0:02:58]} 6. O-O {[%clk 0:03:00]}  dxc4 {[%clk 0:02:58]} 7. Qc2 {[%clk 0:02:59]}  a6 {[%clk 0:02:58]} 8. Qxc4 {[%clk 0:02:58]}  b5 {[%clk 0:02:56]} 9. Qc2 {[%clk 0:02:58]}  Bb7 {[%clk 0:02:56]} 10. Bf4 {[%clk 0:02:58]}  Nd5 {[%clk 0:02:49]} 11. Rc1 {[%clk 0:02:54]}  Nxf4 {[%clk 0:02:31]} 12. gxf4 {[%clk 0:02:53]}  Bd6 {[%clk 0:02:30]} 13. Ng5 {[%clk 0:02:48]}  g6 {[%clk 0:01:57]} 14. Bxb7 {[%clk 0:02:48]}  Ra7 {[%clk 0:01:57]} 15. Bg2 {[%clk 0:02:42]}  Bxf4 {[%clk 0:01:57]} 16. Nf3 {[%clk 0:02:37]}  Bxc1 {[%clk 0:01:56]} 17. Qxc1 {[%clk 0:02:37]}  Nd7 {[%clk 0:01:51]} 18. Nbd2 {[%clk 0:02:33]}  Qe7 {[%clk 0:01:47]} 19. Qc6 {[%clk 0:02:28]}  e5 {[%clk 0:01:42]} 20. Nxe5 {[%clk 0:02:16]}  Nxe5 {[%clk 0:01:42]} 21. dxe5 {[%clk 0:02:15]}  Qxe5 {[%clk 0:01:41]} 22. Qc3 {[%clk 0:01:53]}  Qxe2 {[%clk 0:01:36]} 23. Ne4 {[%clk 0:01:52]}  b4 {[%clk 0:01:12]} 24. Nf6+ {[%clk 0:01:44]}  Kh8 {[%clk 0:01:10]} 25. Qd4 {[%clk 0:01:44]}  c5 {[%clk 0:01:05]} 26. Qh4 {[%clk 0:01:40]}  h5 {[%clk 0:00:55]} 27. Qg5 {[%clk 0:01:27]}  Kg7 {[%clk 0:00:55]} 28. h4 {[%clk 0:01:23]}  Qxb2 {[%clk 0:00:48]} 29. Nxh5+ {[%clk 0:01:21]}  Kh7 {[%clk 0:00:48]} 30. Rd1 {[%clk 0:01:16]}  Qe2 {[%clk 0:00:36]} 31. Nf6+ {[%clk 0:01:14]}  Kg7 {[%clk 0:00:37]} 32. Rd6 {[%clk 0:01:11]}  Re7 {[%clk 0:00:33]} 33. h5 {[%clk 0:01:10]}  Qe1+ {[%clk 0:00:33]} 34. Kh2 {[%clk 0:01:10]}  Qe5+ {[%clk 0:00:32]} 35. Qxe5 {[%clk 0:01:09]}  Rxe5 {[%clk 0:00:33]} 36. Rxa6 {[%clk 0:01:00]}  Re6 {[%clk 0:00:23]} 37. Rxe6 {[%clk 0:00:56]}  fxe6 {[%clk 0:00:23]} 38. Ne4 {[%clk 0:00:54]}  c4 {[%clk 0:00:23]} 39. Nc5 {[%clk 0:00:41]}  Rf6 {[%clk 0:00:18]} 40. hxg6 {[%clk 0:00:39]}  c3 {[%clk 0:00:17]} 41. Be4 {[%clk 0:00:30]}  Kh6 {[%clk 0:00:17]} 42. Kg3 {[%clk 0:00:29]}  Rf8 {[%clk 0:00:17]} 43. Nb3 {[%clk 0:00:27]}  Rc8 {[%clk 0:00:17]} 44. Bc2 {[%clk 0:00:25]}  Rc7 {[%clk 0:00:17]} 45. Kf3 {[%clk 0:00:25]}  e5 {[%clk 0:00:17]} 46. Ke3 {[%clk 0:00:24]}  Kg5 {[%clk 0:00:16]} 47. Nc1 {[%clk 0:00:19]}  Kf6 {[%clk 0:00:14]} 48. Ne2 {[%clk 0:00:18]}  Ra7 {[%clk 0:00:14]} 49. Bb3 {[%clk 0:00:17]}  c2 {[%clk 0:00:15]} 50. Kd2 {[%clk 0:00:16]}  Rc7 {[%clk 0:00:14]} 51. Bxc2 {[%clk 0:00:14]}  Rc6 {[%clk 0:00:13]} 52. Bd3 {[%clk 0:00:13]}  Rd6 {[%clk 0:00:14]} 53. Ke3 {[%clk 0:00:11]}  Rc6 {[%clk 0:00:13]} 54. f3 {[%clk 0:00:09]}  Rb6 {[%clk 0:00:13]} 55. Bc2 {[%clk 0:00:07]}  Rc6 {[%clk 0:00:13]} 56. Kd2 {[%clk 0:00:07]}  Rd6+ {[%clk 0:00:13]} 57. Ke3 {[%clk 0:00:05]}  Rc6 {[%clk 0:00:14]} 58. Kd2 {[%clk 0:00:05]}  Ra6 {[%clk 0:00:14]} 59. Bb3 {[%clk 0:00:04]}  Rc6 {[%clk 0:00:14]} 60. Ke3 {[%clk 0:00:03]}  Kxg6 {[%clk 0:00:14]} 61. Ke4 {[%clk 0:00:03]}  Kf6 {[%clk 0:00:15]} 62. Ng3 {[%clk 0:00:02]}  Rd6 {[%clk 0:00:15]} 63. Nh5+ {[%clk 0:00:01]}  Ke7 {[%clk 0:00:13]} 64. Kxe5 {[%clk 0:00:01]}  Rd2 {[%clk 0:00:14]} 0-1


[Site "https://www.chess.com"]

[Event "Titled Tuesday Blitz February 22 Late 2022"]
[White "Lewtak, Damian"]
[Black "Tanenbaum, Zachary"]
[WhiteFideId "1141724"]
[BlackFideId "2060850"]
[WhiteElo "2361"]
[BlackElo "2168"]
[Result "1-0"]
[Round "07"]
[TimeControl "180+1"]
[Date "2022.02.22"]
[WhiteClock "0:00:36"]
[BlackClock "0:00:05"]

1. e4 {[%clk 0:02:55]}  e5 {[%clk 0:02:51]} 2. Nf3 {[%clk 0:02:54]}  Nc6 {[%clk 0:02:51]} 3. Bb5 {[%clk 0:02:54]}  a6 {[%clk 0:02:51]} 4. Bxc6 {[%clk 0:02:54]}  dxc6 {[%clk 0:02:51]} 5. O-O {[%clk 0:02:55]}  Qd6 {[%clk 0:02:50]} 6. b3 {[%clk 0:02:41]}  Be6 {[%clk 0:02:42]} 7. Bb2 {[%clk 0:02:35]}  f6 {[%clk 0:02:41]} 8. d4 {[%clk 0:02:27]}  O-O-O {[%clk 0:02:38]} 9. Nbd2 {[%clk 0:02:27]}  exd4 {[%clk 0:02:11]} 10. Bxd4 {[%clk 0:02:28]}  Bg4 {[%clk 0:02:06]} 11. Be3 {[%clk 0:02:24]}  Ne7 {[%clk 0:01:55]} 12. Qb1 {[%clk 0:01:58]}  Ng6 {[%clk 0:01:51]} 13. a4 {[%clk 0:01:51]}  Qe6 {[%clk 0:01:33]} 14. c3 {[%clk 0:01:47]}  h5 {[%clk 0:01:29]} 15. b4 {[%clk 0:01:46]}  h4 {[%clk 0:01:13]} 16. b5 {[%clk 0:01:34]}  a5 {[%clk 0:01:13]} 17. Nd4 {[%clk 0:01:32]}  Rxd4 {[%clk 0:01:01]} 18. cxd4 {[%clk 0:01:33]}  h3 {[%clk 0:01:01]} 19. bxc6 {[%clk 0:01:28]}  Qxc6 {[%clk 0:00:57]} 20. Rc1 {[%clk 0:01:25]}  Qd6 {[%clk 0:00:42]} 21. Nc4 {[%clk 0:01:20]}  Qa6 {[%clk 0:00:23]} 22. Qb5 {[%clk 0:01:03]}  Qxb5 {[%clk 0:00:21]} 23. axb5 {[%clk 0:01:04]}  hxg2 {[%clk 0:00:20]} 24. Rxa5 {[%clk 0:00:57]}  Nh4 {[%clk 0:00:16]} 25. Nb6+ {[%clk 0:00:41]}  Kd8 {[%clk 0:00:16]} 26. Ra8+ {[%clk 0:00:41]}  Ke7 {[%clk 0:00:16]} 27. Rxc7+ {[%clk 0:00:40]}  Ke6 {[%clk 0:00:12]} 28. Re8+ {[%clk 0:00:37]}  Kd6 {[%clk 0:00:05]} 29. Bf4# {[%clk 0:00:36]} 1-0


[Site "https://www.chess.com"]